[Event "Titled Tuesday Blitz May 2 Early 2023"]
[White "Dilanyan, Grigor"]
[Black "Gharibyan, Mamikon"]
[WhiteFideId "13303570"]
[BlackFideId "13308300"]
[WhiteElo "2229"]
[BlackElo "2445"]
[Result "1/2-1/2"]
[Round "05"]
[TimeControl "180+2"]
[Date "2023.05.02"]
[WhiteClock "0:00:05"]
[BlackClock "0:00:06"]

1. e4 {[%clk 0:03:00]}  c5 {[%clk 0:02:57]} 2. Nf3 {[%clk 0:03:00]}  Nc6 {[%clk 0:02:57]} 3. Bb5 {[%clk 0:02:59]}  g6 {[%clk 0:02:57]} 4. O-O {[%clk 0:02:40]}  Bg7 {[%clk 0:02:56]} 5. Re1 {[%clk 0:02:38]}  Nf6 {[%clk 0:02:56]} 6. e5 {[%clk 0:02:36]}  Nd5 {[%clk 0:02:56]} 7. Nc3 {[%clk 0:02:34]}  Nc7 {[%clk 0:02:56]} 8. Bxc6 {[%clk 0:02:31]}  dxc6 {[%clk 0:02:57]} 9. h3 {[%clk 0:02:29]}  b6 {[%clk 0:02:54]} 10. d3 {[%clk 0:02:22]}  h6 {[%clk 0:02:54]} 11. a4 {[%clk 0:02:22]}  a5 {[%clk 0:02:54]} 12. Be3 {[%clk 0:02:09]}  g5 {[%clk 0:02:54]} 13. d4 {[%clk 0:02:01]}  Ne6 {[%clk 0:02:31]} 14. dxc5 {[%clk 0:01:57]}  Qxd1 {[%clk 0:02:32]} 15. Raxd1 {[%clk 0:01:55]}  bxc5 {[%clk 0:02:32]} 16. Ne4 {[%clk 0:01:52]}  c4 {[%clk 0:02:31]} 17. Nd4 {[%clk 0:01:28]}  Nxd4 {[%clk 0:02:16]} 18. Bxd4 {[%clk 0:01:25]}  O-O {[%clk 0:02:13]} 19. Nc5 {[%clk 0:01:11]}  Bf5 {[%clk 0:02:12]} 20. Rd2 {[%clk 0:01:09]}  Rfd8 {[%clk 0:02:09]} 21. c3 {[%clk 0:01:05]}  Rd5 {[%clk 0:02:03]} 22. g4 {[%clk 0:01:04]}  Bg6 {[%clk 0:02:02]} 23. e6 {[%clk 0:00:27]}  f5 {[%clk 0:00:57]} 24. Red1 {[%clk 0:00:20]}  Rad8 {[%clk 0:00:48]} 25. Be3 {[%clk 0:00:18]}  f4 {[%clk 0:00:39]} 26. Rxd5 {[%clk 0:00:18]}  cxd5 {[%clk 0:00:28]} 27. Bd4 {[%clk 0:00:18]}  Rb8 {[%clk 0:00:23]} 28. Rd2 {[%clk 0:00:18]}  Bxd4 {[%clk 0:00:21]} 29. cxd4 {[%clk 0:00:19]}  h5 {[%clk 0:00:13]} 30. Kg2 {[%clk 0:00:19]}  Kg7 {[%clk 0:00:12]} 31. gxh5 {[%clk 0:00:18]}  Bxh5 {[%clk 0:00:12]} 32. h4 {[%clk 0:00:19]}  Kg6 {[%clk 0:00:09]} 33. hxg5 {[%clk 0:00:18]}  Kxg5 {[%clk 0:00:10]} 34. Nd7 {[%clk 0:00:08]}  Rg8 {[%clk 0:00:08]} 35. f3 {[%clk 0:00:06]}  Kf5+ {[%clk 0:00:07]} 36. Kf2 {[%clk 0:00:06]}  Kxe6 {[%clk 0:00:07]} 37. Nc5+ {[%clk 0:00:06]}  Kf6 {[%clk 0:00:04]} 38. Re2 {[%clk 0:00:06]}  Bf7 {[%clk 0:00:03]} 39. Re5 {[%clk 0:00:05]}  e6 {[%clk 0:00:03]} 40. Nd7+ {[%clk 0:00:02]}  Ke7 {[%clk 0:00:03]} 41. Nc5 {[%clk 0:00:03]}  Rb8 {[%clk 0:00:03]} 42. Re2 {[%clk 0:00:03]}  Rb6 {[%clk 0:00:04]} 43. Rd2 {[%clk 0:00:03]}  Bg6 {[%clk 0:00:04]} 44. Re2 {[%clk 0:00:03]}  Bd3 {[%clk 0:00:03]} 45. Rd2 {[%clk 0:00:04]}  Bf5 {[%clk 0:00:03]} 46. Re2 {[%clk 0:00:04]}  Rb8 {[%clk 0:00:03]} 47. Kg2 {[%clk 0:00:04]}  Kf7 {[%clk 0:00:03]} 48. Kf2 {[%clk 0:00:05]}  Rb4 {[%clk 0:00:03]} 49. Kg2 {[%clk 0:00:03]}  c3 {[%clk 0:00:03]} 50. bxc3 {[%clk 0:00:03]}  Rc4 {[%clk 0:00:04]} 51. Rb2 {[%clk 0:00:04]}  Rxc3 {[%clk 0:00:04]} 52. Rb7+ {[%clk 0:00:05]}  Kg6 {[%clk 0:00:04]} 53. Nd7 {[%clk 0:00:06]}  Rc2+ {[%clk 0:00:03]} 54. Kg1 {[%clk 0:00:06]}  Kg5 {[%clk 0:00:04]} 55. Ne5 {[%clk 0:00:07]}  Kh4 {[%clk 0:00:04]} 56. Rg7 {[%clk 0:00:07]}  Rd2 {[%clk 0:00:04]} 57. Nc6 {[%clk 0:00:03]}  Ra2 {[%clk 0:00:01]} 58. Ne7 {[%clk 0:00:02]}  Ra1+ {[%clk 0:00:01]} 59. Kf2 {[%clk 0:00:02]}  Ra2+ {[%clk 0:00:02]} 60. Kg1 {[%clk 0:00:02]}  Kh5 {[%clk 0:00:03]} 61. Nxf5 {[%clk 0:00:02]}  exf5 {[%clk 0:00:04]} 62. Rd7 {[%clk 0:00:02]}  Kh4 {[%clk 0:00:03]} 63. Rxd5 {[%clk 0:00:03]}  Kg3 {[%clk 0:00:04]} 64. Kf1 {[%clk 0:00:02]}  Kxf3 {[%clk 0:00:04]} 65. Ke1 {[%clk 0:00:03]}  Ke4 {[%clk 0:00:04]} 66. Re5+ {[%clk 0:00:04]}  Kxd4 {[%clk 0:00:05]} 67. Rxf5 {[%clk 0:00:05]}  Ke3 {[%clk 0:00:05]} 68. Re5+ {[%clk 0:00:04]}  Kf3 {[%clk 0:00:06]} 69. Rxa5 {[%clk 0:00:02]}  Ra1+ {[%clk 0:00:06]} 70. Kd2 {[%clk 0:00:03]}  Kf2 {[%clk 0:00:07]} 71. Rf5 {[%clk 0:00:02]}  f3 {[%clk 0:00:07]} 72. a5 {[%clk 0:00:03]}  Ra2+ {[%clk 0:00:07]} 73. Kc3 {[%clk 0:00:03]}  Ke2 {[%clk 0:00:07]} 74. Kb4 {[%clk 0:00:04]}  f2 {[%clk 0:00:08]} 75. Kb5 {[%clk 0:00:04]}  Rb2+ {[%clk 0:00:04]} 76. Kc6 {[%clk 0:00:03]}  Ra2 {[%clk 0:00:05]} 77. Kb6 {[%clk 0:00:04]}  Rb2+ {[%clk 0:00:05]} 78. Kc6 {[%clk 0:00:04]}  f1=Q {[%clk 0:00:05]} 79. Rxf1 {[%clk 0:00:04]}  Kxf1 {[%clk 0:00:06]} 80. a6 {[%clk 0:00:05]}  Ra2 {[%clk 0:00:06]} 81. Kb7 {[%clk 0:00:05]}  Rxa6 {[%clk 0:00:06]} 82. Kxa6 {[%clk 0:00:05]} 1/2-1/2


[Site "https://www.chess.com"]

[Event "Titled Tuesday Blitz May 2 Early 2023"]
[White "Danielyan, Vahe"]
[Black "Remizov, Yaroslav"]
[WhiteFideId "13304828"]
[BlackFideId "34134015"]
[WhiteElo "2423"]
[BlackElo "2412"]
[Result "0-1"]
[Round "05"]
[TimeControl "180+2"]
[Date "2023.05.02"]
[WhiteClock "0:00:01"]
[BlackClock "0:01:00"]

1. d4 {[%clk 0:03:00]}  Nf6 {[%clk 0:02:58]} 2. c4 {[%clk 0:03:01]}  e6 {[%clk 0:02:56]} 3. Nf3 {[%clk 0:02:54]}  c5 {[%clk 0:02:56]} 4. d5 {[%clk 0:02:54]}  b5 {[%clk 0:02:56]} 5. Bg5 {[%clk 0:02:44]}  exd5 {[%clk 0:02:54]} 6. cxd5 {[%clk 0:02:31]}  h6 {[%clk 0:02:54]} 7. Bh4 {[%clk 0:02:20]}  g5 {[%clk 0:02:50]} 8. Bg3 {[%clk 0:02:13]}  Bg7 {[%clk 0:02:51]} 9. Nc3 {[%clk 0:01:53]}  b4 {[%clk 0:02:49]} 10. Nb5 {[%clk 0:01:44]}  O-O {[%clk 0:02:37]} 11. Nc7 {[%clk 0:01:02]}  Ne4 {[%clk 0:02:37]} 12. Nxa8 {[%clk 0:00:42]}  Bxb2 {[%clk 0:02:36]} 13. Be5 {[%clk 0:00:42]}  Bxe5 {[%clk 0:02:20]} 14. Nxe5 {[%clk 0:00:43]}  Qf6 {[%clk 0:02:16]} 15. f3 {[%clk 0:00:32]}  Qxe5 {[%clk 0:02:07]} 16. fxe4 {[%clk 0:00:31]}  f5 {[%clk 0:02:08]} 17. Rc1 {[%clk 0:00:19]}  fxe4 {[%clk 0:02:05]} 18. e3 {[%clk 0:00:18]}  Bb7 {[%clk 0:01:22]} 19. Bc4 {[%clk 0:00:12]}  Bxa8 {[%clk 0:01:21]} 20. Qd2 {[%clk 0:00:12]}  d6 {[%clk 0:01:20]} 21. g3 {[%clk 0:00:05]}  Nd7 {[%clk 0:01:19]} 22. Rf1 {[%clk 0:00:05]}  Rf3 {[%clk 0:01:16]} 23. Rxf3 {[%clk 0:00:04]}  exf3 {[%clk 0:01:16]} 24. Kf2 {[%clk 0:00:03]}  Nf6 {[%clk 0:01:15]} 25. Qd3 {[%clk 0:00:02]}  Qb2+ {[%clk 0:01:00]} 26. Rc2 {[%clk 0:00:02]}  Ng4+ {[%clk 0:01:00]} 27. Kxf3 {[%clk 0:00:01]}  Ne5+ {[%clk 0:01:00]} 0-1


[Site "https://www.chess.com"]

[Event "Titled Tuesday Blitz May 2 Early 2023"]
[White "Novik, Maxim"]
[Black "Kovalenko, Igor"]
[WhiteFideId "4102924"]
[BlackFideId "14117908"]
[WhiteElo "2287"]
[BlackElo "2574"]
[Result "1-0"]
[Round "05"]
[TimeControl "180+2"]
[Date "2023.05.02"]
[WhiteClock "0:00:08"]
[BlackClock "0:00:45"]

1. d4 {[%clk 0:03:00]}  Nf6 {[%clk 0:02:59]} 2. c4 {[%clk 0:03:00]}  g6 {[%clk 0:02:59]} 3. Nc3 {[%clk 0:03:00]}  Bg7 {[%clk 0:03:00]} 4. e4 {[%clk 0:03:01]}  d6 {[%clk 0:03:00]} 5. Be2 {[%clk 0:03:01]}  Nbd7 {[%clk 0:02:59]} 6. Nf3 {[%clk 0:03:01]}  e5 {[%clk 0:02:59]} 7. O-O {[%clk 0:03:01]}  O-O {[%clk 0:02:59]} 8. Qc2 {[%clk 0:03:00]}  h6 {[%clk 0:02:59]} 9. Rd1 {[%clk 0:03:00]}  Re8 {[%clk 0:02:59]} 10. h3 {[%clk 0:02:53]}  a5 {[%clk 0:02:58]} 11. Be3 {[%clk 0:02:46]}  exd4 {[%clk 0:02:53]} 12. Nxd4 {[%clk 0:02:46]}  Nc5 {[%clk 0:02:53]} 13. f3 {[%clk 0:02:46]}  Nh5 {[%clk 0:02:50]} 14. Ndb5 {[%clk 0:02:36]}  Bd7 {[%clk 0:02:32]} 15. Nd5 {[%clk 0:02:27]}  Bxb5 {[%clk 0:02:31]} 16. cxb5 {[%clk 0:02:26]}  b6 {[%clk 0:02:28]} 17. Rac1 {[%clk 0:02:17]}  Kh7 {[%clk 0:02:27]} 18. b3 {[%clk 0:02:13]}  Nf6 {[%clk 0:02:25]} 19. Nxf6+ {[%clk 0:02:03]}  Qxf6 {[%clk 0:02:25]} 20. Bc4 {[%clk 0:02:03]}  Qe7 {[%clk 0:02:24]} 21. Bf2 {[%clk 0:02:01]}  Be5 {[%clk 0:02:23]} 22. a3 {[%clk 0:01:59]}  Ra7 {[%clk 0:02:19]} 23. Bd5 {[%clk 0:01:57]}  Rf8 {[%clk 0:02:16]} 24. g3 {[%clk 0:01:50]}  g5 {[%clk 0:02:14]} 25. Kg2 {[%clk 0:01:49]}  Rg8 {[%clk 0:02:12]} 26. Rh1 {[%clk 0:01:39]}  Rg6 {[%clk 0:02:11]} 27. Qe2 {[%clk 0:01:29]}  h5 {[%clk 0:02:10]} 28. h4 {[%clk 0:01:25]}  gxh4 {[%clk 0:02:09]} 29. f4 {[%clk 0:01:16]}  Bxf4 {[%clk 0:02:03]} 30. Qxh5+ {[%clk 0:01:12]}  Kg7 {[%clk 0:02:01]} 31. Rxh4 {[%clk 0:01:11]}  Qxh4 {[%clk 0:01:54]} 32. Qxh4 {[%clk 0:01:04]}  Bxc1 {[%clk 0:01:54]} 33. Bd4+ {[%clk 0:00:55]}  f6 {[%clk 0:01:54]} 34. Qh3 {[%clk 0:00:45]}  Bf4 {[%clk 0:01:53]} 35. Qc8 {[%clk 0:00:44]}  Rxg3+ {[%clk 0:01:49]} 36. Kf2 {[%clk 0:00:44]}  Nd3+ {[%clk 0:01:49]} 37. Ke2 {[%clk 0:00:44]}  Nc1+ {[%clk 0:01:32]} 38. Kd1 {[%clk 0:00:44]}  Rd3+ {[%clk 0:01:32]} 39. Kc2 {[%clk 0:00:36]}  Rd2+ {[%clk 0:01:32]} 40. Kxc1 {[%clk 0:00:31]}  Rxd4+ {[%clk 0:01:31]} 41. Kc2 {[%clk 0:00:30]}  Rd2+ {[%clk 0:01:29]} 42. Kc3 {[%clk 0:00:30]}  Kh6 {[%clk 0:01:22]} 43. Qb8 {[%clk 0:00:26]}  c6 {[%clk 0:01:22]} 44. bxc6 {[%clk 0:00:19]}  Rg7 {[%clk 0:01:22]} 45. Qh8+ {[%clk 0:00:19]}  Kg6 {[%clk 0:01:22]} 46. Be6 {[%clk 0:00:18]}  f5 {[%clk 0:01:13]} 47. Bxf5+ {[%clk 0:00:18]}  Kf6 {[%clk 0:01:13]} 48. Qf8+ {[%clk 0:00:18]}  Rf7 {[%clk 0:01:13]} 49. Qh8+ {[%clk 0:00:18]}  Rg7 {[%clk 0:01:11]} 50. c7 {[%clk 0:00:15]}  Rd1 {[%clk 0:01:08]} 51. c8=Q {[%clk 0:00:13]}  Rc1+ {[%clk 0:01:08]} 52. Kd3 {[%clk 0:00:13]}  Rxc8 {[%clk 0:01:07]} 53. Qxc8 {[%clk 0:00:12]}  Be5 {[%clk 0:01:06]} 54. Qe6+ {[%clk 0:00:12]}  Kg5 {[%clk 0:01:06]} 55. Ke3 {[%clk 0:00:12]}  Kh5 {[%clk 0:01:02]} 56. Qe8+ {[%clk 0:00:11]}  Kh4 {[%clk 0:01:02]} 57. Kf3 {[%clk 0:00:10]}  Rg3+ {[%clk 0:01:02]} 58. Kf2 {[%clk 0:00:10]}  Rg7 {[%clk 0:00:59]} 59. Qh8+ {[%clk 0:00:10]}  Kg5 {[%clk 0:00:59]} 60. Kf3 {[%clk 0:00:09]}  Kf6 {[%clk 0:00:57]} 61. Qh6+ {[%clk 0:00:09]}  Ke7 {[%clk 0:00:55]} 62. Qe6+ {[%clk 0:00:09]}  Kf8 {[%clk 0:00:55]} 63. Bg6 {[%clk 0:00:09]}  Rc7 {[%clk 0:00:53]} 64. Qe8+ {[%clk 0:00:08]}  Kg7 {[%clk 0:00:53]} 65. Bf5 {[%clk 0:00:08]}  Rc3+ {[%clk 0:00:52]} 66. Kg4 {[%clk 0:00:09]}  Rg3+ {[%clk 0:00:52]} 67. Kh4 {[%clk 0:00:09]}  Rxb3 {[%clk 0:00:46]} 68. Qe7+ {[%clk 0:00:09]}  Kg8 {[%clk 0:00:45]} 69. Be6+ {[%clk 0:00:08]} 1-0


[Site "https://www.chess.com"]

[Event "Titled Tuesday Blitz May 2 Early 2023"]
[White "Kleiman, Jake"]
[Black "Pakleza, Zbigniew"]
[WhiteFideId "2020041"]
[BlackFideId "1119290"]
[WhiteElo "2399"]
[BlackElo "2410"]
[Result "0-1"]
[Round "05"]
[TimeControl "180+2"]
[Date "2023.05.02"]
[WhiteClock "0:00:21"]
[BlackClock "0:00:44"]

1. e4 {[%clk 0:02:57]}  d6 {[%clk 0:02:59]} 2. d4 {[%clk 0:02:57]}  Nf6 {[%clk 0:03:00]} 3. Nc3 {[%clk 0:02:57]}  c6 {[%clk 0:02:59]} 4. f4 {[%clk 0:02:55]}  Qb6 {[%clk 0:02:58]} 5. e5 {[%clk 0:02:52]}  Nd5 {[%clk 0:02:58]} 6. Nxd5 {[%clk 0:02:49]}  cxd5 {[%clk 0:02:59]} 7. Bd3 {[%clk 0:02:46]}  Nc6 {[%clk 0:02:58]} 8. c3 {[%clk 0:02:46]}  g6 {[%clk 0:02:58]} 9. Nf3 {[%clk 0:02:40]}  Bf5 {[%clk 0:02:55]} 10. Bxf5 {[%clk 0:02:36]}  gxf5 {[%clk 0:02:56]} 11. O-O {[%clk 0:02:37]}  e6 {[%clk 0:02:56]} 12. Kh1 {[%clk 0:02:36]}  Be7 {[%clk 0:02:54]} 13. Qe2 {[%clk 0:02:34]}  O-O-O {[%clk 0:02:52]} 14. Be3 {[%clk 0:02:32]}  Kb8 {[%clk 0:02:51]} 15. c4 {[%clk 0:02:02]}  Qa6 {[%clk 0:02:48]} 16. b3 {[%clk 0:02:02]}  dxc4 {[%clk 0:02:41]} 17. bxc4 {[%clk 0:02:02]}  d5 {[%clk 0:02:38]} 18. Rfc1 {[%clk 0:02:02]}  Na5 {[%clk 0:02:31]} 19. Rab1 {[%clk 0:01:49]}  Nxc4 {[%clk 0:02:26]} 20. Bf2 {[%clk 0:01:31]}  Rc8 {[%clk 0:02:21]} 21. Qe1 {[%clk 0:01:26]}  h6 {[%clk 0:01:58]} 22. Qe2 {[%clk 0:01:11]}  Rc6 {[%clk 0:01:46]} 23. h3 {[%clk 0:01:09]}  Rhc8 {[%clk 0:01:43]} 24. Rb3 {[%clk 0:00:38]}  Na5 {[%clk 0:01:21]} 25. Qxa6 {[%clk 0:00:33]}  Rxa6 {[%clk 0:01:22]} 26. Rxc8+ {[%clk 0:00:29]}  Kxc8 {[%clk 0:01:23]} 27. Rc3+ {[%clk 0:00:27]}  Rc6 {[%clk 0:01:20]} 28. Rd3 {[%clk 0:00:23]}  Rc2 {[%clk 0:01:15]} 29. Bh4 {[%clk 0:00:22]}  Bxh4 {[%clk 0:00:57]} 30. Nxh4 {[%clk 0:00:23]}  Rxa2 {[%clk 0:00:58]} 31. Rg3 {[%clk 0:00:23]}  b5 {[%clk 0:00:43]} 32. Rg7 {[%clk 0:00:21]}  b4 {[%clk 0:00:43]} 33. Rxf7 {[%clk 0:00:21]}  b3 {[%clk 0:00:44]} 0-1


[Site "https://www.chess.com"]

[Event "Titled Tuesday Blitz May 2 Early 2023"]
[White "Mortazavi, Ali"]
[Black "Sokolovsky, Yahli"]
[WhiteFideId "401323"]
[BlackFideId "2820242"]
[WhiteElo "2339"]
[BlackElo "2316"]
[Result "0-1"]
[Round "05"]
[TimeControl "180+2"]
[Date "2023.05.02"]
[WhiteClock "0:00:03"]
[BlackClock "0:00:06"]

1. Nf3 {[%clk 0:03:00]}  d5 {[%clk 0:02:53]} 2. g3 {[%clk 0:03:00]}  Bg4 {[%clk 0:02:49]} 3. Bg2 {[%clk 0:03:00]}  Bxf3 {[%clk 0:02:49]} 4. Bxf3 {[%clk 0:03:00]}  c6 {[%clk 0:02:50]} 5. d4 {[%clk 0:02:56]}  e6 {[%clk 0:02:50]} 6. O-O {[%clk 0:02:55]}  f5 {[%clk 0:02:50]} 7. c4 {[%clk 0:02:42]}  Bd6 {[%clk 0:02:46]} 8. Bf4 {[%clk 0:02:31]}  Bxf4 {[%clk 0:02:45]} 9. gxf4 {[%clk 0:02:31]}  Qh4 {[%clk 0:02:21]} 10. cxd5 {[%clk 0:01:59]}  exd5 {[%clk 0:02:17]} 11. Qb3 {[%clk 0:01:59]}  Qe7 {[%clk 0:02:08]} 12. Qa3 {[%clk 0:01:41]}  Qd7 {[%clk 0:01:55]} 13. Nd2 {[%clk 0:01:33]}  Ne7 {[%clk 0:01:54]} 14. Kh1 {[%clk 0:01:30]}  O-O {[%clk 0:01:54]} 15. Rg1 {[%clk 0:01:30]}  Na6 {[%clk 0:01:36]} 16. e3 {[%clk 0:01:23]}  Nc7 {[%clk 0:01:35]} 17. Rg3 {[%clk 0:01:20]}  Ne6 {[%clk 0:01:24]} 18. Rag1 {[%clk 0:01:18]}  Kh8 {[%clk 0:01:24]} 19. Bd1 {[%clk 0:01:08]}  Rf6 {[%clk 0:01:22]} 20. Nf3 {[%clk 0:01:06]}  Ng6 {[%clk 0:01:18]} 21. Ne5 {[%clk 0:01:03]}  Nxe5 {[%clk 0:01:17]} 22. fxe5 {[%clk 0:00:54]}  Rf7 {[%clk 0:01:10]} 23. f4 {[%clk 0:00:50]}  Qe7 {[%clk 0:01:10]} 24. Qd3 {[%clk 0:00:45]}  c5 {[%clk 0:01:02]} 25. Bf3 {[%clk 0:00:43]}  Rd8 {[%clk 0:00:53]} 26. dxc5 {[%clk 0:00:29]}  Qxc5 {[%clk 0:00:54]} 27. Rh3 {[%clk 0:00:23]}  d4 {[%clk 0:00:41]} 28. Bh5 {[%clk 0:00:20]}  Rff8 {[%clk 0:00:28]} 29. Bg6 {[%clk 0:00:18]}  dxe3 {[%clk 0:00:17]} 30. Rxh7+ {[%clk 0:00:16]}  Kg8 {[%clk 0:00:18]} 31. Qb3 {[%clk 0:00:14]}  Qc6+ {[%clk 0:00:10]} 32. Rg2 {[%clk 0:00:12]}  Rd5 {[%clk 0:00:11]} 33. h4 {[%clk 0:00:08]}  Nxf4 {[%clk 0:00:10]} 34. Bf7+ {[%clk 0:00:04]}  Rxf7 {[%clk 0:00:10]} 35. Rc2 {[%clk 0:00:02]}  Rd1+ {[%clk 0:00:09]} 36. Kh2 {[%clk 0:00:03]}  Qh1+ {[%clk 0:00:09]} 37. Kg3 {[%clk 0:00:03]}  Ne2+ {[%clk 0:00:04]} 38. Rxe2 {[%clk 0:00:03]}  Rg1+ {[%clk 0:00:05]} 39. Kf4 {[%clk 0:00:03]}  Qe4# {[%clk 0:00:06]} 0-1


[Site "https://www.chess.com"]

[Event "Titled Tuesday Blitz May 2 Early 2023"]
[White "Nagy, Gabor"]
[Black "Alinasab, Mobina"]
[WhiteFideId "737119"]
[BlackFideId "12528897"]
[WhiteElo "2514"]
[BlackElo "2149"]
[Result "1-0"]
[Round "05"]
[TimeControl "180+2"]
[Date "2023.05.02"]
[WhiteClock "0:01:05"]
[BlackClock "0:00:02"]

1. d4 {[%clk 0:03:00]}  Nf6 {[%clk 0:02:57]} 2. Nc3 {[%clk 0:03:01]}  d5 {[%clk 0:02:56]} 3. Bf4 {[%clk 0:03:01]}  Bf5 {[%clk 0:02:54]} 4. e3 {[%clk 0:03:01]}  e6 {[%clk 0:02:54]} 5. Nf3 {[%clk 0:02:59]}  Bb4 {[%clk 0:02:54]} 6. Bb5+ {[%clk 0:02:41]}  Nbd7 {[%clk 0:02:47]} 7. O-O {[%clk 0:02:40]}  O-O {[%clk 0:02:43]} 8. Ne2 {[%clk 0:02:37]}  h6 {[%clk 0:02:39]} 9. h3 {[%clk 0:02:35]}  c6 {[%clk 0:02:26]} 10. Bd3 {[%clk 0:02:33]}  Ne4 {[%clk 0:02:23]} 11. Bh2 {[%clk 0:02:27]}  Qe7 {[%clk 0:02:20]} 12. c4 {[%clk 0:02:25]}  Bd6 {[%clk 0:02:19]} 13. Bxd6 {[%clk 0:02:23]}  Qxd6 {[%clk 0:02:20]} 14. Qc2 {[%clk 0:02:19]}  Ndf6 {[%clk 0:02:01]} 15. Ne5 {[%clk 0:02:16]}  dxc4 {[%clk 0:01:56]} 16. Nxc4 {[%clk 0:02:15]}  Qc7 {[%clk 0:01:56]} 17. Rad1 {[%clk 0:02:10]}  Nd6 {[%clk 0:01:50]} 18. Bxf5 {[%clk 0:02:06]}  Nxf5 {[%clk 0:01:50]} 19. e4 {[%clk 0:02:05]}  Ne7 {[%clk 0:01:49]} 20. Nc3 {[%clk 0:02:00]}  Rfd8 {[%clk 0:01:47]} 21. Rd3 {[%clk 0:01:59]}  Ng6 {[%clk 0:01:44]} 22. Rfd1 {[%clk 0:02:00]}  Nf4 {[%clk 0:01:42]} 23. R3d2 {[%clk 0:01:57]}  Qe7 {[%clk 0:01:39]} 24. Kh2 {[%clk 0:01:52]}  h5 {[%clk 0:00:18]} 25. g3 {[%clk 0:01:48]}  Ng6 {[%clk 0:00:18]} 26. Ne3 {[%clk 0:01:44]}  h4 {[%clk 0:00:18]} 27. Rg1 {[%clk 0:01:24]}  hxg3+ {[%clk 0:00:19]} 28. Rxg3 {[%clk 0:01:25]}  Nh5 {[%clk 0:00:18]} 29. Rg4 {[%clk 0:01:23]}  Qf6 {[%clk 0:00:09]} 30. e5 {[%clk 0:01:20]}  Qf3 {[%clk 0:00:09]} 31. Qd1 {[%clk 0:01:18]}  Qxd1 {[%clk 0:00:04]} 32. Rxd1 {[%clk 0:01:19]}  Kh7 {[%clk 0:00:03]} 33. Ne4 {[%clk 0:01:19]}  f5 {[%clk 0:00:02]} 34. exf6 {[%clk 0:01:17]}  Nxf6 {[%clk 0:00:02]} 35. Nxf6+ {[%clk 0:01:17]}  gxf6 {[%clk 0:00:03]} 36. Rdg1 {[%clk 0:01:17]}  Rg8 {[%clk 0:00:03]} 37. Nc4 {[%clk 0:01:17]}  Rg7 {[%clk 0:00:03]} 38. Nd6 {[%clk 0:01:17]}  Rag8 {[%clk 0:00:03]} 39. f4 {[%clk 0:01:15]}  f5 {[%clk 0:00:02]} 40. R4g3 {[%clk 0:01:09]}  Nxf4 {[%clk 0:00:01]} 41. Nxb7 {[%clk 0:01:09]}  Rxg3 {[%clk 0:00:01]} 42. Rxg3 {[%clk 0:01:10]}  Rxg3 {[%clk 0:00:01]} 43. Kxg3 {[%clk 0:01:11]}  Ne2+ {[%clk 0:00:02]} 44. Kf2 {[%clk 0:01:10]}  Nxd4 {[%clk 0:00:03]} 45. Nd8 {[%clk 0:01:09]}  e5 {[%clk 0:00:03]} 46. Nf7 {[%clk 0:01:08]}  Kg6 {[%clk 0:00:03]} 47. Nxe5+ {[%clk 0:01:08]}  Kf6 {[%clk 0:00:04]} 48. Nd3 {[%clk 0:01:08]}  Ne6 {[%clk 0:00:03]} 49. Ke3 {[%clk 0:01:08]}  Kg5 {[%clk 0:00:02]} 50. Ne5 {[%clk 0:01:07]}  f4+ {[%clk 0:00:03]} 51. Ke4 {[%clk 0:01:08]}  Nc5+ {[%clk 0:00:03]} 52. Kf3 {[%clk 0:01:08]}  Kf5 {[%clk 0:00:03]} 53. Nxc6 {[%clk 0:01:08]}  Ne6 {[%clk 0:00:03]} 54. h4 {[%clk 0:01:06]}  a6 {[%clk 0:00:03]} 55. b4 {[%clk 0:01:06]}  Ng7 {[%clk 0:00:02]} 56. a4 {[%clk 0:01:05]}  Nh5 {[%clk 0:00:02]} 57. b5 {[%clk 0:01:06]}  axb5 {[%clk 0:00:02]} 58. axb5 {[%clk 0:01:07]}  Ke6 {[%clk 0:00:03]} 59. Kg4 {[%clk 0:01:06]}  Nf6+ {[%clk 0:00:01]} 60. Kxf4 {[%clk 0:01:06]}  Kd6 {[%clk 0:00:02]} 61. Kf5 {[%clk 0:01:06]}  Nh5 {[%clk 0:00:02]} 62. Kg6 {[%clk 0:01:07]}  Ng3 {[%clk 0:00:03]} 63. h5 {[%clk 0:01:07]}  Kc5 {[%clk 0:00:01]} 64. h6 {[%clk 0:01:05]}  Ne2 {[%clk 0:00:01]} 65. h7 {[%clk 0:01:05]}  Nf4+ {[%clk 0:00:02]} 66. Kf7 {[%clk 0:01:05]} 1-0


[Site "https://www.chess.com"]

[Event "Titled Tuesday Blitz May 2 Early 2023"]
[White "Klimkowski, Jan"]
[Black "Jaskolka, Tomasz"]
[WhiteFideId "21856222"]
[BlackFideId "1170791"]
[WhiteElo "2331"]
[BlackElo "2155"]
[Result "1-0"]
[Round "05"]
[TimeControl "180+2"]
[Date "2023.05.02"]
[WhiteClock "0:01:20"]
[BlackClock "0:00:59"]

1. e4 {[%clk 0:02:59]}  c5 {[%clk 0:02:57]} 2. Nf3 {[%clk 0:02:56]}  e6 {[%clk 0:02:57]} 3. d4 {[%clk 0:02:56]}  cxd4 {[%clk 0:02:58]} 4. Nxd4 {[%clk 0:02:57]}  Nc6 {[%clk 0:02:58]} 5. Nc3 {[%clk 0:02:57]}  Qc7 {[%clk 0:02:59]} 6. Be2 {[%clk 0:02:57]}  a6 {[%clk 0:02:58]} 7. O-O {[%clk 0:02:57]}  Nf6 {[%clk 0:02:58]} 8. Be3 {[%clk 0:02:57]}  Be7 {[%clk 0:02:58]} 9. f4 {[%clk 0:02:57]}  d6 {[%clk 0:02:59]} 10. Kh1 {[%clk 0:02:56]}  O-O {[%clk 0:02:58]} 11. Qe1 {[%clk 0:02:56]}  Nxd4 {[%clk 0:02:47]} 12. Bxd4 {[%clk 0:02:57]}  b5 {[%clk 0:02:47]} 13. a3 {[%clk 0:02:55]}  Bb7 {[%clk 0:02:46]} 14. Bd3 {[%clk 0:02:54]}  Bc6 {[%clk 0:02:32]} 15. Qg3 {[%clk 0:02:53]}  Qd7 {[%clk 0:02:20]} 16. Rad1 {[%clk 0:02:51]}  Rfd8 {[%clk 0:02:08]} 17. e5 {[%clk 0:02:13]}  Ne8 {[%clk 0:01:50]} 18. f5 {[%clk 0:02:01]}  Bf8 {[%clk 0:01:37]} 19. fxe6 {[%clk 0:01:51]}  fxe6 {[%clk 0:01:31]} 20. Qh3 {[%clk 0:01:37]}  g6 {[%clk 0:01:28]} 21. exd6 {[%clk 0:01:27]}  Qxd6 {[%clk 0:01:22]} 22. Be3 {[%clk 0:01:22]}  Qe5 {[%clk 0:01:08]} 23. Rde1 {[%clk 0:01:22]}  Qg7 {[%clk 0:01:00]} 24. Qxe6+ {[%clk 0:01:21]}  Kh8 {[%clk 0:00:59]} 25. Qxc6 {[%clk 0:01:20]}  Nf6 {[%clk 0:00:59]} 26. Qxf6 {[%clk 0:01:20]} 1-0


[Site "https://www.chess.com"]